[Event "9th Bangabandhu Team Mixed 2021"]
[Site "Dhaka"]
[Date "2021.04.04"]
[Round "1.2"]
[White "Hasan, Mostafa Razibul"]
[Black "Mohammad Minhaz Uddin"]
[Result "1/2-1/2"]
[ECO "E13"]
[WhiteElo "1862"]
[BlackElo "2281"]
[Annotator "RC"]
[PlyCount "136"]
[EventDate "2021.04.04"]
[EventType "team-tourn"]
[EventCountry "BAN"]
[SourceTitle "playchess.com"]
[Source "ChessBase"]
[SourceQuality "1"]
[TimeControl "1500+10"]

1. Nf3 {[%emt 0:00:00]} Nf6 {[%emt 0:00:00]} 2. d4 {[%emt 0:00:00]} e6 {[%emt 0:00:00]} 3. c4 {[%emt 0:00:00]} b6 {[%emt 0:00:00]} 4. Nc3 {[%emt 0:00:00]} Bb4 {[%emt 0:00:00]} 5. Bg5 {[%emt 0:00:00]} Bb7 {[%emt 0:00:00]} 6. Qc2 {[%emt 0:00:00]} h6 {[%emt 0:00:00]} 7. Bh4 {[%emt 0:00:00]} g5 {[%emt 0:00:00]} 8. Bg3 {[%emt 0:00:00]} Ne4 {[%emt 0:00:00]} 9. e3 {[%emt 0:00:00]} Bxc3+ {[%emt 0:00:00]} 10. bxc3 {[%emt 0:00:00]} d6 {[%emt 0:00:00]} 11. d5 {[%emt 0:00:00]} Nxg3 {[%emt 0:00:00]} 12. hxg3 {[%emt 0:00:00]} e5 {[%emt 0:00:00]} 13. Qf5 {[%emt 0:00:00]} Bc8 {[%emt 0:00:00]} 14. Qc2 {[%emt 0:00:00]} Nd7 {[%emt 0:00:00]} 15. Be2 {[%emt 0:00:00]} Nc5 {[%emt 0:00:00]} 16. O-O-O {[%emt 0:00:00]} Qf6 {[%emt 0:00:00]} 17. Rdf1 {[%emt 0:00:00]} Bf5 {[%emt 0:00:00]} 18. Qb2 {[%emt 0:00:00]} O-O-O {[%emt 0:00:00]} 19. Ne1 {[%emt 0:00:00]} Bg6 {[%emt 0:00:00]} 20. f3 {[%emt 0:00:00]} h5 {[%emt 0:00:00]} 21. e4 {[%emt 0:00:00]} Qe7 {[%emt 0:00:00]} 22. Nd3 {[%emt 0:00:00]} Nxd3+ {[%emt 0:00:00]} 23. Bxd3 {[%emt 0:00:00]} f6 {[%emt 0:00:00]} 24. Qb5 {[%emt 0:00:00]} Be8 {[%emt 0:00:00]} 25. Qa6+ {[%emt 0:00:00]} Kb8 {[%emt 0:00:00]} 26. Kd2 {[%emt 0:00:00]} Qd7 {[%emt 0:00:00]} 27. Bc2 {[%emt 0:00:00]} Qc8 {[%emt 0:00:00]} 28. Qa3 {[%emt 0:00:00]} Bd7 {[%emt 0:00:00]} 29. Rb1 {[%emt 0:00:00]} c5 {[%emt 0:00:00]} 30. Qb3 {[%emt 0:00:00]} Qa6 {[%emt 0:00:00]} 31. a4 {[%emt 0:00:00]} Qa5 {[%emt 0:00:00]} 32. Rh2 {[%emt 0:00:00]} Rh6 {[%emt 0:05:28]} 33. Rbh1 {[%emt 0:00:00]} Rdh8 {[%emt 0:00:00]} 34. g4 {[%emt 0:00:00]} h4 {[%emt 0:03:48]} 35. Rh3 {[%emt 0:00:00]} a6 {[%emt 0:01:04]} 36. Ke2 {[%emt 0:00:00]} Kc7 {[%emt 0:00:00]} 37. Rb1 {[%emt 0:00:00]} Rb8 {[%emt 0:00:09]} 38. Kf2 {[%emt 0:00:00]} b5 {[%emt 0:00:17]} 39. axb5 {[%emt 0:00:00]} axb5 {[%emt 0:02:23]} 40. Rhh1 {[%emt 0:00:00]} Rhh8 {[%emt 0:04:26]} 41. Ra1 {[%emt 0:00:00]} Qb6 {[%emt 0:00:00]} 42. Rhb1 {[%emt 0:00:00]} Rb7 {[%emt 0:11:20]} 43. Kg1 {[%emt 0:01:19]} Rhb8 {[%emt 0:00:22]} 44. Kh2 {[%emt 0:01:40]} b4 {[%emt 0:00:19]} 45. Bd3 {[%emt 0:02:11]} Kd8 {[%emt 0:00:00]} 46. Ra2 {[%emt 0:01:58]} bxc3 {[%emt 0:01:17]} 47. Qxc3 {[%emt 0:01:06]} Qxb1 {[%emt 0:00:00]} 48. Bxb1 {[%emt 0:00:00]} Rxb1 {[%emt 0:00:00]} 49. Ra7 {[%emt 0:01:15]} R1b4 {[%emt 0:01:23]} 50. Qa3 {[%emt 0:00:00]} R4b7 {[%emt 0:00:26]} 51. Qa5+ {[%emt 0:00:07]} Ke7 {[%emt 0:00:00]} 52. Rxb7 {[%emt 0:01:33]} Rxb7 {[%emt 0:00:00]} 53. Qa8 {[%emt 0:00:00]} Rb4 {[%emt 0:00:00]} 54. Qg8 {[%emt 0:00:00]} Rxc4 {[%emt 0:00:00]} 55. Qg7+ {[%emt 0:00:00]} Kd8 {[%emt 0:00:00]} 56. Qxf6+ {[%emt 0:00:00]} Kc7 {[%emt 0:00:00]} 57. Qxg5 {[%emt 0:00:00]} Ra4 {[%emt 0:00:00]} 58. Qe3 {[%emt 0:00:08]} Ra8 {[%emt 0:00:00]} 59. Kh3 {[%emt 0:00:00]} Rc8 {[%emt 0:00:10]} 60. Kxh4 {[%emt 0:00:00]} c4 {[%emt 0:00:00]} 61. Kg5 {[%emt 0:01:13]} Kd8 {[%emt 0:00:04]} 62. Qc3 {[%emt 0:00:00]} Ke7 {[%emt 0:00:00]} 63. Kg6 {[%emt 0:01:31]} Be8+ {[%emt 0:01:49]} 64. Kg5 {[%emt 0:01:05]} Bd7 {[%emt 0:00:00]} 65. f4 {[%emt 0:01:13]} Rg8+ {[%emt 0:00:00]} 66. Kh6 {[%emt 0:00:00]} Rxg4 {[%emt 0:00:21]} 67. fxe5 {[%emt 0:00:03]} Rh4+ {[%emt 0:00:31]} 68. Kg5 {[%emt 0:00:02]} Rg4+ {[%emt 0:00:03]} 1/2-1/2

[Event "9th Bangabandhu Team Mixed 2021"]
[Site "Dhaka"]
[Date "2021.04.04"]
[Round "1.4"]
[White "Parveen, Tanima"]
[Black "Sultana, Sharmin Shirin"]
[Result "*"]
[ECO "C50"]
[WhiteElo "1984"]
[BlackElo "2006"]
[Annotator "RC"]
[PlyCount "34"]
[EventDate "2021.04.04"]
[EventType "team-tourn"]
[EventCountry "BAN"]
[SourceTitle "playchess.com"]
[Source "ChessBase"]
[SourceQuality "1"]
[TimeControl "1500+10"]

1. e4 {[%emt 0:00:00]} e5 {[%emt 0:00:00]} 2. Nf3 {[%emt 0:00:00]} Nc6 {[%emt 0:00:00]} 3. Bc4 {[%emt 0:00:00]} Bc5 {[%emt 0:00:00]} 4. d3 {[%emt 0:00:00]} Nf6 {[%emt 0:00:00]} 5. h3 {[%emt 0:00:00]} d6 {[%emt 0:00:00]} 6. a3 {[%emt 0:00:00]} a6 {[%emt 0:00:00]} 7. Nc3 {[%emt 0:00:00]} h6 {[%emt 0:00:00]} 8. O-O {[%emt 0:00:00]} Ba7 {[%emt 0:00:00]} 9. Nd5 {[%emt 0:00:00]} O-O {[%emt 0:00:00]} 10. Be3 {[%emt 0:00:00]} Re8 {[%emt 0:26:40]} 11. Bxa7 {[%emt 0:00:00]} Nxa7 {[%emt 0:00:00]} 12. Nh2 {[%emt 0:00:00]} c6 {[%emt 0:00:00]} 13. Nxf6+ {[%emt 0:00:00]} Qxf6 {[%emt 0:00:00]} 14. Qf3 {[%emt 0:00:00]} Qxf3 {[%emt 0:00:00]} 15. Nxf3 {[%emt 0:00:00]} Be6 {[%emt 0:00:00]} 16. Bxe6 {[%emt 0:00:00]} Rxe6 {[%emt 0:00:00]} 17. c4 {[%emt 0:00:00]} Rae8 {[%emt 0:00:00]} *

[Event "9th Bangabandhu Team Mixed 2021"]
[Site "Dhaka"]
[Date "2021.04.04"]
[Round "1.4"]
[White "Afrin Jahan, Munia"]
[Black "Noshin, Anjum"]
[Result "0-1"]
[ECO "C50"]
[WhiteElo "1647"]
[BlackElo "1912"]
[Annotator "NA"]
[PlyCount "134"]
[EventDate "2021.04.04"]
[EventType "team-tourn"]
[EventCountry "BAN"]
[SourceTitle "playchess.com"]
[Source "ChessBase"]
[SourceQuality "1"]
[TimeControl "1500+10"]

1. e4 {[%emt 0:00:00]} e5 {[%emt 0:00:00]} 2. Nf3 {[%emt 0:00:00]} Nc6 {[%emt 0:00:00]} 3. Bc4 {[%emt 0:00:00]} Bc5 {[%emt 0:00:00]} 4. d3 {[%emt 0:00:00]} Nf6 {[%emt 0:00:00]} 5. h3 {[%emt 0:00:00]} d6 {[%emt 0:00:00]} 6. a3 {[%emt 0:00:00]} a6 {[%emt 0:00:00]} 7. Nc3 {[%emt 0:00:00]} h6 {[%emt 0:00:00]} 8. O-O {[%emt 0:00:00]} Ba7 {[%emt 0:00:00]} 9. Nd5 {[%emt 0:00:00]} O-O {[%emt 0:00:00]} 10. Be3 {[%emt 0:00:00]} Re8 {[%emt 0:00:00]} 11. Bxa7 {[%emt 0:00:00]} Nxa7 {[%emt 0:00:00]} 12. Nh2 {[%emt 0:00:00]} c6 {[%emt 0:00:00]} 13. Nxf6+ {[%emt 0:00:00]} Qxf6 {[%emt 0:00:00]} 14. Qf3 {[%emt 0:00:00]} Qxf3 {[%emt 0:00:00]} 15. Nxf3 {[%emt 0:00:00]} Be6 {[%emt 0:00:00]} 16. Bxe6 {[%emt 0:00:00]} Rxe6 {[%emt 0:00:00]} 17. c4 {[%emt 0:00:00]} Rae8 {[%emt 0:00:00]} 18. Nd2 {[%emt 0:00:00]} d5 {[%emt 0:00:00]} 19. Nb3 {[%emt 0:00:00]} Rd8 {[%emt 0:00:00]} 20. Rfd1 {[%emt 0:00:00]} Re7 {[%emt 0:06:18]} 21. Kf1 {[%emt 0:01:10]} Nc8 {[%emt 0:02:31]} 22. cxd5 {[%emt 0:10:14]} cxd5 {[%emt 0:00:01]} 23. Rac1 {[%emt 0:00:28]} Nb6 {[%emt 0:02:02]} 24. Ke2 {[%emt 0:02:56]} Kh7 {[%emt 0:01:49]} 25. Na5 {[%emt 0:00:41]} Red7 {[%emt 0:02:16]} 26. f3 {[%emt 0:01:23]} f6 {[%emt 0:02:31]} 27. b3 {[%emt 0:01:03]} Kg6 {[%emt 0:02:04]} 28. g4 {[%emt 0:01:18]} Kg5 {[%emt 0:00:08]} 29. b4 {[%emt 0:02:46]} Kh4 {[%emt 0:02:18]} 30. Nb3 {[%emt 0:01:39]} Na4 {[%emt 0:03:29]} 31. exd5 {[%emt 0:03:26]} Rxd5 {[%emt 0:00:09]} 32. Rd2 {[%emt 0:00:00]} R8d7 {[%emt 0:03:09]} 33. Ke3 {[%emt 0:00:00]} Kg5 {[%emt 0:00:03]} 34. Na5 {[%emt 0:01:22]} Nb6 {[%emt 0:00:50]} 35. Nb3 {[%emt 0:00:00]} Kg6 {[%emt 0:00:15]} 36. h4 {[%emt 0:00:00]} h5 {[%emt 0:00:00]} 37. Nc5 {[%emt 0:00:05]} Re7 {[%emt 0:00:00]} 38. Kf2 {[%emt 0:00:39]} Rc7 {[%emt 0:00:00]} 39. Rcc2 {[%emt 0:00:00]} Nd7 {[%emt 0:00:00]} 40. Nxd7 {[%emt 0:00:00]} Rcxd7 {[%emt 0:00:14]} 41. Ke3 {[%emt 0:00:00]} Rd4 {[%emt 0:00:25]} 42. Rc4 {[%emt 0:00:26]} R4d6 {[%emt 0:00:00]} 43. d4 {[%emt 0:00:10]} hxg4 {[%emt 0:01:03]} 44. fxg4 {[%emt 0:00:03]} Kf7 {[%emt 0:00:03]} 45. Ke4 {[%emt 0:00:25]} Rd5 {[%emt 0:00:10]} 46. Ke3 {[%emt 0:01:21]} R5d6 {[%emt 0:00:00]} 47. h5 {[%emt 0:00:00]} b5 {[%emt 0:00:00]} 48. Rc1 {[%emt 0:00:42]} exd4+ {[%emt 0:00:30]} 49. Ke4 {[%emt 0:00:00]} Re7+ {[%emt 0:00:00]} 50. Kf4 {[%emt 0:00:00]} Re3 {[%emt 0:00:15]} 51. Rcd1 {[%emt 0:00:00]} Rxa3 {[%emt 0:00:00]} 52. Rxd4 {[%emt 0:00:00]} Re6 {[%emt 0:00:30]} 53. Rd7+ {[%emt 0:00:00]} Re7 {[%emt 0:00:00]} 54. Rxe7+ {[%emt 0:00:00]} Kxe7 {[%emt 0:00:00]} 55. Rd4 {[%emt 0:00:00]} Ra4 {[%emt 0:00:00]} 56. Kf5 {[%emt 0:00:00]} a5 {[%emt 0:00:21]} 57. Re4+ {[%emt 0:00:00]} Kf7 {[%emt 0:00:00]} 58. bxa5 {[%emt 0:00:01]} Rxa5 {[%emt 0:00:00]} 59. Rb4 {[%emt 0:00:00]} Ke7 {[%emt 0:00:15]} 60. Kg6 {[%emt 0:00:00]} Ra4 {[%emt 0:00:00]} 61. Rxa4 {[%emt 0:00:19]} bxa4 {[%emt 0:00:00]} 62. Kxg7 {[%emt 0:00:00]} a3 {[%emt 0:00:00]} 63. h6 {[%emt 0:00:00]} a2 {[%emt 0:00:00]} 64. h7 {[%emt 0:00:11]} a1=Q {[%emt 0:00:00]} 65. h8=Q {[%emt 0:01:05]} f5+ {[%emt 0:00:00]} 66. Kh7 {[%emt 0:00:26]} Qxh8+ {[%emt 0:00:00]} 67. Kxh8 {[%emt 0:00:00]} fxg4 {[%emt 0:00:00]} 0-1

[Event "9th Bangabandhu Team Mixed 2021"]
[Site "Dhaka"]
[Date "2021.04.04"]
[Round "1.5"]
[White "Sacchu, Afzal Hossain"]
[Black "Anata, Choudhury"]
[Result "0-1"]
[ECO "A04"]
[WhiteElo "2008"]
[BlackElo "2184"]
[Annotator "ChessBase"]
[PlyCount "87"]
[EventDate "2021.04.04"]
[EventType "team-tourn"]
[EventCountry "BAN"]
[SourceTitle "playchess.com"]
[Source "ChessBase"]
[SourceQuality "1"]
[TimeControl "1500+10"]

1. d3 {[%emt 0:00:00]} c5 {[%emt 0:00:00]} 2. Nf3 {[%emt 0:00:00]} Nc6 {[%emt 0:00:00]} 3. g3 {[%emt 0:00:00]} g6 {[%emt 0:00:00]} 4. Bg2 {[%emt 0:00:00]} Bg7 {[%emt 0:00:00]} 5. O-O {[%emt 0:00:00]} d6 {[%emt 0:00:00]} 6. h3 {[%emt 0:26:00]} e5 {[%emt 0:00:00]} 7. Nc3 {[%emt 0:00:00]} Nge7 {[%emt 0:00:00]} 8. e4 {[%emt 0:00:00]} O-O {[%emt 0:00:00]} 9. Be3 {[%emt 0:00:30]} Nd4 {[%emt 0:00:00]} 10. Kh2 {[%emt 0:00:00]} f5 {[%emt 0:00:00]} 11. Bg5 {[%emt 0:00:20]} Be6 {[%emt 0:26:50]} 12. Nxd4 {[%emt 0:00:00]} cxd4 {[%emt 0:00:00]} 13. Ne2 {[%emt 0:00:20]} Qd7 {[%emt 0:00:00]} 14. exf5 {[%emt 0:00:00]} gxf5 {[%emt 0:00:00]} 15. c3 {[%emt 0:00:00]} dxc3 {[%emt 0:00:00]} 16. Nxc3 {[%emt 0:00:00]} Nc6 {[%emt 0:00:50]} 17. Qh5 {[%emt 0:00:00]} Rae8 {[%emt 0:00:10]} 18. f4 {[%emt 0:00:00]} Nd4 {[%emt 0:00:00]} 19. Rae1 {[%emt 0:00:00]} Nc2 {[%emt 0:00:00]} 20. Re2 {[%emt 0:00:00]} Nb4 {[%emt 0:00:00]} 21. Rd1 {[%emt 0:01:20]} Nxa2 {[%emt 0:00:40]} 22. Nd5 {[%emt 0:00:10]} a5 {[%emt 0:00:00]} 23. Rc2 {[%emt 0:00:00]} Qf7 {[%emt 0:00:20]} 24. Qxf7+ {[%emt 0:00:00]} Rxf7 {[%emt 0:00:10]} 25. fxe5 {[%emt 0:00:30]} dxe5 {[%emt 0:00:00]} 26. Rc5 {[%emt 0:00:10]} b6 {[%emt 0:00:00]} 27. Rc6 {[%emt 0:00:00]} Nb4 {[%emt 0:00:00]} 28. Nxb4 {[%emt 0:00:00]} axb4 {[%emt 0:00:00]} 29. Rxb6 {[%emt 0:00:00]} Bf8 {[%emt 0:00:00]} 30. Re1 {[%emt 0:00:00]} Bb3 {[%emt 0:01:00]} 31. Re2 {[%emt 0:00:00]} Rc7 {[%emt 0:00:10]} 32. Bf6 {[%emt 0:00:00]} Bc5 {[%emt 0:00:00]} 33. Rb7 {[%emt 0:00:00]} Rxb7 {[%emt 0:00:00]} 34. Bxb7 {[%emt 0:01:20]} Bd4 {[%emt 0:00:00]} 35. Bg5 {[%emt 0:00:00]} Rb8 {[%emt 0:00:40]} 36. Ba6 {[%emt 0:00:20]} Ra8 {[%emt 0:00:00]} 37. Bc4+ {[%emt 0:00:00]} Bxc4 {[%emt 0:00:00]} 38. dxc4 {[%emt 0:00:00]} Ra2 {[%emt 0:00:00]} 39. Bc1 {[%emt 0:00:00]} b3 {[%emt 0:00:00]} 40. Kg2 {[%emt 0:00:00]} Ra1 {[%emt 0:00:00]} 41. Be3 {[%emt 0:00:00]} Rd1 {[%emt 0:00:00]} 42. Kf3 {[%emt 0:00:00]} Rd3 {[%emt 0:00:00]} 43. c5 {[%emt 0:00:00]} Bxc5 {[%emt 0:00:00]} 44. Kg2 {[%emt 0:01:20]} 0-1

[Event "9th Bangabandhu Team Mixed 2021"]
[Site "Dhaka"]
[Date "2021.04.04"]
[Round "1.8"]
[White "Jannatul, Ferdous"]
[Black "Wadifa, Ahmed"]
[Result "1-0"]
[ECO "B48"]
[WhiteElo "1778"]
[BlackElo "1595"]
[Annotator "NA"]
[PlyCount "58"]
[EventDate "2021.04.04"]
[EventType "team-tourn"]
[EventCountry "BAN"]
[SourceTitle "playchess.com"]
[Source "ChessBase"]
[SourceQuality "1"]
[TimeControl "1500+10"]

1. e4 {[%emt 0:00:00]} c5 {[%emt 0:00:00]} 2. Nf3 {[%emt 0:00:00]} e6 {[%emt 0:00:00]} 3. d4 {[%emt 0:00:00]} cxd4 {[%emt 0:00:00]} 4. Nxd4 {[%emt 0:00:00]} Nc6 {[%emt 0:00:00]} 5. a3 {[%emt 0:00:00]} a6 {[%emt 0:00:00]} 6. Nc3 {[%emt 0:00:00]} Qc7 {[%emt 0:00:00]} 7. Be3 {[%emt 0:00:00]} Nf6 {[%emt 0:00:00]} 8. Bd3 {[%emt 0:00:00]} b5 {[%emt 0:00:00]} 9. O-O {[%emt 0:00:00]} Bb7 {[%emt 0:00:00]} 10. Kh1 {[%emt 0:00:00]} Nxd4 {[%emt 0:00:00]} 11. Bxd4 {[%emt 0:00:00]} Bc5 {[%emt 0:00:00]} 12. Bxc5 {[%emt 0:00:00]} Qxc5 {[%emt 0:00:00]} 13. Qe2 {[%emt 0:00:00]} d6 {[%emt 0:00:00]} 14. Rad1 {[%emt 0:00:00]} O-O {[%emt 0:00:00]} 15. f4 {[%emt 0:00:00]} e5 {[%emt 0:00:00]} 16. f5 {[%emt 0:00:00]} Rfe8 {[%emt 0:00:00]} 17. Rd2 {[%emt 0:00:00]} b4 {[%emt 0:00:00]} 18. axb4 {[%emt 0:00:00]} Qxb4 {[%emt 0:00:00]} 19. Bc4 {[%emt 0:00:00]} Rac8 {[%emt 0:00:00]} 20. Ba2 {[%emt 0:09:36]} Qxb2 {[%emt 0:00:00]} 21. Rb1 {[%emt 0:00:34]} Qxc3 {[%emt 0:00:00]} 22. Rxb7 {[%emt 0:00:51]} Qa1+ {[%emt 0:00:00]} 23. Bb1 {[%emt 0:06:44]} Rb8 {[%emt 0:00:00]} 24. Rb3 {[%emt 0:11:15]} Rxb3 {[%emt 0:00:00]} 25. cxb3 {[%emt 0:00:00]} Qxb1+ {[%emt 0:00:00]} 26. Rd1 {[%emt 0:00:00]} Qxb3 {[%emt 0:00:00]} 27. Rxd6 {[%emt 0:00:00]} Qb1+ {[%emt 0:00:00]} 28. Rd1 {[%emt 0:00:00]} Qxe4 {[%emt 0:00:00]} 29. Qxa6 {[%emt 0:00:00]} Qxf5 {[%emt 0:00:00]} 1-0

[Event "9th Bangabandhu Team Mixed 2021"]
[Site "Dhaka"]
[Date "2021.04.04"]
[Round "1.9"]
[White "Islam, Khandaker Aminul"]
[Black "Hossain, Delwar"]
[Result "*"]
[ECO "E01"]
[WhiteElo "2210"]
[BlackElo "2054"]
[Annotator "RC"]
[PlyCount "53"]
[EventDate "2021.04.04"]
[EventType "team-tourn"]
[EventCountry "BAN"]
[SourceTitle "playchess.com"]
[Source "ChessBase"]
[SourceQuality "1"]
[TimeControl "1500+10"]

1. d4 {[%emt 0:25:10]} d5 {[%emt 0:00:00]} 2. Nf3 {[%emt 0:00:00]} Nf6 {[%emt 0:00:00]} 3. g3 {[%emt 0:00:00]} e6 {[%emt 0:25:30]} 4. Bg2 {[%emt 0:00:00]} Bd6 {[%emt 0:00:00]} 5. c4 {[%emt 0:00:00]} c6 {[%emt 0:00:00]} 6. Nc3 {[%emt 0:00:00]} Nbd7 {[%emt 0:00:00]} 7. O-O {[%emt 0:00:00]} O-O {[%emt 0:00:00]} 8. b3 {[%emt 0:00:00]} Re8 {[%emt 0:00:00]} 9. Bb2 {[%emt 0:00:00]} b6 {[%emt 0:00:00]} 10. Nd2 {[%emt 0:00:00]} Bb7 {[%emt 0:00:00]} 11. e4 {[%emt 0:00:00]} dxe4 {[%emt 0:00:00]} 12. Ndxe4 {[%emt 0:00:00]} Be7 {[%emt 0:00:00]} 13. Rc1 {[%emt 0:00:00]} Rc8 {[%emt 0:00:00]} 14. Re1 {[%emt 0:00:00]} Qc7 {[%emt 0:00:00]} 15. d5 {[%emt 0:00:00]} exd5 {[%emt 0:00:00]} 16. cxd5 {[%emt 0:00:00]} Nxe4 {[%emt 0:00:00]} 17. Nxe4 {[%emt 0:00:00]} Bf8 {[%emt 0:00:00]} 18. Ng5 {[%emt 0:00:00]} Ne5 {[%emt 0:08:26]} 19. Rxe5 {[%emt 0:00:00]} Rxe5 {[%emt 0:00:23]} 20. Bxe5 {[%emt 0:00:00]} Qxe5 {[%emt 0:00:00]} 21. Qh5 {[%emt 0:00:00]} h6 {[%emt 0:01:18]} 22. Qxf7+ {[%emt 0:00:00]} Kh8 {[%emt 0:00:00]} 23. Qxb7 {[%emt 0:00:00]} Qxg5 {[%emt 0:00:03]} 24. Qxc8 {[%emt 0:00:00]} Qxc1+ {[%emt 0:09:04]} 25. Bf1 {[%emt 0:00:00]} Qc5 {[%emt 0:00:51]} 26. dxc6 {[%emt 0:00:00]} Qd6 {[%emt 0:05:29]} 27. c7 {[%emt 0:00:00]} *

[Event "9th Bangabandhu Team Mixed 2021"]
[Site "Dhaka"]
[Date "2021.04.04"]
[Round "1.10"]
[White "Mohammed Abdul, Malek"]
[Black "Mohammad Fahad, Rahman"]
[Result "0-1"]
[ECO "D02"]
[WhiteElo "2125"]
[BlackElo "2321"]
[Annotator "RC"]
[PlyCount "110"]
[EventDate "2021.04.04"]
[EventType "team-tourn"]
[EventCountry "BAN"]
[SourceTitle "playchess.com"]
[Source "ChessBase"]
[SourceQuality "1"]
[TimeControl "1500+10"]

1. d4 {[%emt 0:00:00]} d5 {[%emt 0:00:00]} 2. Nf3 {[%emt 0:00:00]} Nf6 {[%emt 0:00:00]} 3. Bf4 {[%emt 0:00:00]} c5 {[%emt 0:00:00]} 4. e3 {[%emt 0:00:00]} Nc6 {[%emt 0:00:00]} 5. c3 {[%emt 0:00:00]} Qb6 {[%emt 0:00:00]} 6. Qc1 {[%emt 0:00:00]} Bf5 {[%emt 0:00:00]} 7. dxc5 {[%emt 0:00:00]} Qxc5 {[%emt 0:00:00]} 8. Nbd2 {[%emt 0:00:00]} Rc8 {[%emt 0:00:00]} 9. Be2 {[%emt 0:00:00]} g6 {[%emt 0:00:00]} 10. O-O {[%emt 0:00:00]} Bg7 {[%emt 0:00:00]} 11. Nb3 {[%emt 0:00:00]} Qb6 {[%emt 0:00:00]} 12. Nbd4 {[%emt 0:00:00]} Bd7 {[%emt 0:00:00]} 13. Ne5 {[%emt 0:00:00]} O-O {[%emt 0:00:00]} 14. Bf3 {[%emt 0:00:00]} Rfd8 {[%emt 0:00:00]} 15. Rd1 {[%emt 0:00:00]} Be8 {[%emt 0:00:00]} 16. Qc2 {[%emt 0:00:00]} Nd7 {[%emt 0:00:00]} 17. Nxd7 {[%emt 0:00:00]} Bxd7 {[%emt 0:00:00]} 18. Qb3 {[%emt 0:00:00]} e5 {[%emt 0:00:00]} 19. Nxc6 {[%emt 0:00:00]} bxc6 {[%emt 0:00:00]} 20. Bg5 {[%emt 0:00:00]} Re8 {[%emt 0:00:00]} 21. e4 {[%emt 0:00:00]} d4 {[%emt 0:00:00]} 22. Be2 {[%emt 0:00:00]} Be6 {[%emt 0:00:00]} 23. Qc2 {[%emt 0:00:00]} c5 {[%emt 0:00:00]} 24. c4 {[%emt 0:00:00]} Rb8 {[%emt 0:00:00]} 25. b3 {[%emt 0:00:00]} Bd7 {[%emt 0:00:00]} 26. Bd3 {[%emt 0:00:00]} Bf6 {[%emt 0:00:00]} 27. Qd2 {[%emt 0:00:00]} Bxg5 {[%emt 0:00:00]} 28. Qxg5 {[%emt 0:00:00]} Kg7 {[%emt 0:00:00]} 29. h4 {[%emt 0:01:53]} Qf6 {[%emt 0:00:00]} 30. f3 {[%emt 0:03:29]} a5 {[%emt 0:00:00]} 31. Kf2 {[%emt 0:05:07]} Rb4 {[%emt 0:00:00]} 32. Rab1 {[%emt 0:01:47]} Ra8 {[%emt 0:00:00]} 33. Qxf6+ {[%emt 0:03:17]} Kxf6 {[%emt 0:00:00]} 34. a4 {[%emt 0:00:00]} h5 {[%emt 0:00:00]} 35. Ke2 {[%emt 0:00:00]} Kg7 {[%emt 0:00:00]} 36. Kd2 {[%emt 0:00:28]} Rab8 {[%emt 0:00:08]} 37. Kc2 {[%emt 0:00:23]} R4b6 {[%emt 0:02:08]} 38. Rh1 {[%emt 0:01:19]} f5 {[%emt 0:01:06]} 39. Rhe1 {[%emt 0:00:30]} f4 {[%emt 0:01:57]} 40. Rh1 {[%emt 0:01:28]} Kh6 {[%emt 0:00:06]} 41. Be2 {[%emt 0:01:43]} g5 {[%emt 0:00:15]} 42. hxg5+ {[%emt 0:00:20]} Kxg5 {[%emt 0:00:00]} 43. Bd3 {[%emt 0:00:05]} Bxa4 {[%emt 0:00:00]} 44. bxa4 {[%emt 0:04:28]} Rxb1 {[%emt 0:00:00]} 45. Rxb1 {[%emt 0:00:00]} Rxb1 {[%emt 0:00:00]} 46. Kxb1 {[%emt 0:00:00]} Kh4 {[%emt 0:00:00]} 47. g4 {[%emt 0:00:40]} fxg3 {[%emt 0:00:20]} 48. Bf1 {[%emt 0:00:00]} Kg5 {[%emt 0:00:00]} 49. Kc2 {[%emt 0:00:45]} Kf4 {[%emt 0:00:00]} 50. Bg2 {[%emt 0:00:00]} h4 {[%emt 0:00:22]} 51. Kd2 {[%emt 0:05:15]} h3 {[%emt 0:00:00]} 52. Bxh3 {[%emt 0:00:12]} Kxf3 {[%emt 0:00:00]} 53. Ke1 {[%emt 0:00:00]} g2 {[%emt 0:00:00]} 54. Bxg2+ {[%emt 0:00:20]} Kxg2 {[%emt 0:00:00]} 55. Ke2 {[%emt 0:00:09]} Kg3 {[%emt 0:00:00]} 0-1

[Event "9th Bangabandhu Team Mixed 2021"]
[Site "Dhaka"]
[Date "2021.04.04"]
[Round "1.11"]
[White "Subrota, Biswas"]
[Black "ariful, Amin"]
[Result "*"]
[ECO "A43"]
[WhiteElo "2256"]
[BlackElo "1946"]
[Annotator "ChessBase"]
[PlyCount "101"]
[EventDate "2021.04.04"]
[EventType "team-tourn"]
[EventCountry "BAN"]
[SourceTitle "playchess.com"]
[Source "ChessBase"]
[SourceQuality "1"]
[TimeControl "1500+10"]

1. d4 {[%emt 0:25:10]} Nf6 {[%emt 0:25:10]} 2. Nf3 {[%emt 0:00:10]} c5 {[%emt 0:00:10]} 3. d5 {[%emt 0:00:10]} g6 {[%emt 0:00:10]} 4. Nc3 {[%emt 0:00:10]} Bg7 {[%emt 0:00:10]} 5. e4 {[%emt 0:00:10]} d6 {[%emt 0:00:10]} 6. Nd2 {[%emt 0:00:10]} a6 {[%emt 0:00:10]} 7. a4 {[%emt 0:00:10]} O-O {[%emt 0:00:10]} 8. Be2 {[%emt 0:00:10]} e6 {[%emt 0:00:10]} 9. O-O {[%emt 0:00:10]} exd5 {[%emt 0:00:10]} 10. exd5 {[%emt 0:00:10]} Re8 {[%emt 0:00:10]} 11. Nc4 {[%emt 0:00:10]} Ne4 {[%emt 0:00:10]} 12. Nxe4 {[%emt 0:00:10]} Rxe4 {[%emt 0:00:10]} 13. c3 {[%emt 0:00:10]} Qc7 {[%emt 0:00:10]} 14. Bd3 {[%emt 0:00:10]} Re8 {[%emt 0:00:10]} 15. Bf4 {[%emt 0:00:10]} Bf8 {[%emt 0:00:10]} 16. Qf3 {[%emt 0:00:10]} Nd7 {[%emt 0:00:10]} 17. Qg3 {[%emt 0:00:10]} Ne5 {[%emt 0:00:10]} 18. Rfe1 {[%emt 0:00:10]} f6 {[%emt 0:00:10]} 19. Bxe5 {[%emt 0:00:10]} fxe5 {[%emt 0:00:10]} 20. f4 {[%emt 0:00:10]} exf4 {[%emt 0:00:10]} 21. Qxf4 {[%emt 0:00:10]} Qf7 {[%emt 0:00:10]} 22. Qg3 {[%emt 0:00:10]} Rxe1+ {[%emt 0:00:10]} 23. Rxe1 {[%emt 0:00:10]} Bf5 {[%emt 0:00:10]} 24. Bxf5 {[%emt 0:00:10]} Qxf5 {[%emt 0:00:10]} 25. Rf1 {[%emt 0:00:10]} Qe4 {[%emt 0:00:10]} 26. Nb6 {[%emt 0:00:10]} Re8 {[%emt 0:00:10]} 27. Nd7 {[%emt 0:00:10]} Bg7 {[%emt 0:00:10]} 28. Qxd6 {[%emt 0:00:10]} Qe3+ {[%emt 0:00:10]} 29. Kh1 {[%emt 0:00:10]} Qe2 {[%emt 0:00:10]} 30. Qf4 {[%emt 0:00:10]} Qe7 {[%emt 0:00:10]} 31. Nb6 {[%emt 0:00:10]} Rf8 {[%emt 0:00:10]} 32. Qc4 {[%emt 0:00:10]} Rxf1+ {[%emt 0:00:10]} 33. Qxf1 {[%emt 0:00:10]} Be5 {[%emt 0:00:10]} 34. Qe1 {[%emt 0:00:10]} Qg5 {[%emt 0:00:10]} 35. Nc4 {[%emt 0:00:10]} Bxh2 {[%emt 0:00:10]} 36. Kxh2 {[%emt 0:00:10]} Qf4+ {[%emt 0:00:10]} 37. Kg1 {[%emt 0:00:10]} Qxc4 {[%emt 0:00:10]} 38. Qe8+ {[%emt 0:00:10]} Kg7 {[%emt 0:00:10]} 39. d6 {[%emt 0:00:10]} Qf4 {[%emt 0:00:10]} 40. d7 {[%emt 0:00:10]} Qc1+ {[%emt 0:00:10]} 41. Kf2 {[%emt 0:00:10]} Qf4+ {[%emt 0:00:10]} 42. Ke2 {[%emt 0:00:10]} Qg4+ {[%emt 0:00:10]} 43. Ke1 {[%emt 0:00:10]} Qh4+ {[%emt 0:00:10]} 44. Kd2 {[%emt 0:00:10]} Qf2+ {[%emt 0:00:10]} 45. Kd3 {[%emt 0:00:10]} Qf1+ {[%emt 0:00:10]} 46. Kc2 {[%emt 0:00:10]} Qxg2+ {[%emt 0:00:10]} 47. Kb3 {[%emt 0:00:10]} Qd5+ {[%emt 0:00:10]} 48. Ka3 {[%emt 0:00:10]} b5 {[%emt 0:00:10]} 49. axb5 {[%emt 0:00:10]} axb5 {[%emt 0:00:10]} 50. d8=Q {[%emt 0:00:10]} b4+ {[%emt 0:00:10]} 51. Ka4 {[%emt 0:00:10]} *